bitfinex-derivatives/quotes_BTCF0:USTF0_20241019
["timestamp","ask_amount","ask_price","bid_price","bid_amount"]
[1729361538999,0.0002,68151.0,68150.0,0.28708488]
[1729361539400,0.04523865,68151.0,68150.0,0.28708488]
[1729361539606,0.10951451,68151.0,68150.0,0.28708488]
[1729361541511,0.10951424,68151.0,68150.0,0.28708488]
[1729361542021,0.16141237,68151.0,68150.0,0.28708488]
[1729361542202,0.27072661,68151.0,68150.0,0.28708488]
[1729361547014,0.27072661,68151.0,68150.0,0.51530644]
[1729361547015,0.0002,68151.0,68150.0,0.51530644]
[1729361555724,0.0002,68151.0,68150.0,0.51528828]
[1729361559832,0.00220161,68159.0,68158.0,0.066019]
[1729361560031,0.00220161,68159.0,68158.0,0.29422001]
[1729361560329,0.00220161,68159.0,68158.0,0.51349091]
[1729361560531,0.00220161,68159.0,68158.0,0.40885851]
[1729361560835,0.00220161,68159.0,68158.0,0.51252678]
[1729361561423,0.00220161,68159.0,68158.0,0.38895817]
[1729361562022,0.07343439,68159.0,68158.0,0.2852899]
[1729361562223,0.06646933,68159.0,68158.0,0.2852899]
[1729361562429,0.11150227,68159.0,68158.0,0.2852899]
[1729361565419,0.11150137,68159.0,68158.0,0.2852899]
[1729361567036,0.13766968,68159.0,68158.0,0.2852899]
[1729361569028,0.02836992,68159.0,68158.0,0.38891542]
[1729361570131,0.02836992,68159.0,68158.0,0.38890798]
[1729361570325,0.02616831,68159.0,68158.0,0.38890798]
[1729361570641,0.3608,68163.0,68158.0,0.38890798]
[1729361570642,0.426815,68163.0,68158.0,0.38890798]
[1729361570833,0.426815,68163.0,68160.0,0.07328173]
[1729361571028,0.426815,68163.0,68158.0,0.2852899]
[1729361571029,0.426815,68163.0,68161.0,0.07328173]
[1729361571331,0.426815,68163.0,68161.0,0.29447658]
[1729361571520,0.426815,68163.0,68160.0,0.29447658]
[1729361571726,0.0002,68161.0,68160.0,0.07328173]
[1729361571926,0.0002,68161.0,68160.0,0.17689146]
[1729361572136,0.0002,68161.0,68160.0,0.39564298]
[1729361574222,0.0002,68161.0,68160.0,0.32236125]
[1729361574622,0.0002,68161.0,68160.0,0.3956403]
[1729361575027,0.0002,68161.0,68160.0,0.32236125]
[1729361577038,0.06446847,68161.0,68157.0,0.42802]
[1729361577229,0.0002,68158.0,68157.0,0.42702]
[1729361577533,0.02854034,68158.0,68157.0,0.64703654]
[1729361577729,0.10950194,68158.0,68157.0,0.64703654]
[1729361581044,0.17552094,68158.0,68157.0,0.58101654]
[1729361583134,0.17552115,68158.0,68157.0,0.58101654]
[1729361584038,0.066219,68158.0,68157.0,0.68622428]
[1729361585135,0.066219,68158.0,68157.0,0.32542428]
[1729361585843,0.0002,68158.0,68157.0,0.32542428]
[1729361586144,0.0002,68158.0,68157.0,0.4508567]
[1729361587938,0.0002,68158.0,68157.0,0.45095143]
[1729361592046,0.0002,68158.0,68157.0,0.22021654]
[1729361594544,0.0002,68158.0,68157.0,0.28623654]
[1729361599150,0.10950216,68158.0,68157.0,0.09501856]
[1729361606152,0.0002,68158.0,68157.0,0.09501856]
[1729361607652,0.0002,68158.0,68157.0,0.32900403]
[1729361612565,0.0002,68158.0,68157.0,0.32901236]
[1729361614271,0.02854051,68158.0,68157.0,0.09501856]
[1729361614465,0.10950257,68158.0,68157.0,0.09501856]
[1729361615570,0.10950257,68158.0,68157.0,0.06536733]
[1729361617473,0.10950226,68158.0,68157.0,0.06536733]
[1729361622370,0.0002,68158.0,68157.0,0.29981077]
[1729361622576,0.0002,68158.0,68157.0,0.23444344]
[1729361622790,0.0839,68158.0,68157.0,0.23444344]
[1729361627078,0.0839,68158.0,68157.0,0.23443024]
[1729361629289,0.0839,68158.0,68155.0,0.066022]
[1729361629290,0.19320559,68158.0,68155.0,0.066022]
[1729361629594,0.0002,68156.0,68155.0,0.066022]
[1729361629887,0.10950559,68156.0,68155.0,0.066022]
[1729361631876,0.0002,68156.0,68155.0,0.066022]
[1729361632188,0.02854129,68156.0,68155.0,0.066022]
[1729361632372,0.10950559,68156.0,68155.0,0.066022]
[1729361634376,0.1356438,68156.0,68155.0,0.066022]
[1729361636279,0.01479986,68158.0,68156.0,0.06602]
[1729361636483,0.05228998,68161.0,68157.0,0.55090989]
[1729361636785,0.05228998,68161.0,68159.0,0.1174004]
[1729361636983,0.05228998,68161.0,68160.0,0.38238916]
[1729361639086,0.07936377,68161.0,68160.0,0.38238916]
[1729361644197,0.07936377,68161.0,68160.0,0.49978956]
[1729361644392,0.07936377,68161.0,68160.0,0.04402888]
[1729361646199,0.07936377,68161.0,68160.0,0.11004588]
[1729361648589,0.07936377,68161.0,68160.0,0.066017]
[1729361651393,0.1886665,68161.0,68160.0,0.04447468]
[1729361653492,0.1886665,68161.0,68160.0,0.03007288]
[1729361654197,0.13637652,68161.0,68160.0,0.03007288]
[1729361654401,0.22505652,68161.0,68160.0,0.03007288]
[1729361654596,0.22505588,68161.0,68160.0,0.03007288]
[1729361659406,0.11575379,68161.0,68160.0,0.13617159]
[1729361663819,0.11575379,68161.0,68160.0,0.26261951]
[1729361665922,0.11575379,68161.0,68160.0,0.13617159]
[1729361666121,0.11575379,68161.0,68160.0,0.26264641]
[1729361666415,0.11575379,68161.0,68156.0,0.04241437]
[1729361666416,0.22505557,68161.0,68156.0,0.04241437]
[1729361666726,0.22505557,68161.0,68156.0,0.10843537]
[1729361666727,0.0002,68157.0,68156.0,0.10843537]
[1729361666907,0.06446838,68157.0,68156.0,0.10843537]
[1729361667110,0.10950178,68157.0,68156.0,0.3298971]
[1729361672319,0.18987521,68157.0,68156.0,0.3298971]
[1729361672819,0.23490861,68157.0,68156.0,0.3298971]
[1729361673020,0.18987521,68157.0,68156.0,0.3298971]
[1729361673523,0.10950178,68157.0,68156.0,0.3298971]
[1729361673711,0.0452334,68157.0,68156.0,0.3298971]
[1729361673912,0.02853863,68157.0,68156.0,0.3298971]
[1729361674316,0.10949534,68157.0,68156.0,0.3298971]
[1729361674517,0.0002,68157.0,68156.0,0.56378886]
[1729361675334,0.0002,68157.0,68156.0,0.79739527]
[1729361681434,0.02853985,68157.0,68156.0,0.6906971]
[1729361682227,0.10950003,68157.0,68156.0,0.6906971]
[1729361683530,0.10950007,68157.0,68156.0,0.6906971]
[1729361685224,0.10950007,68157.0,68156.0,0.57323987]
[1729361685429,0.10950007,68157.0,68156.0,0.63926087]
[1729361688540,0.10950085,68157.0,68156.0,0.63926087]
[1729361689438,0.02707379,68161.0,68156.0,0.87537574]
[1729361689635,0.05638333,68162.0,68157.0,0.23611487]
[1729361689838,0.05638333,68162.0,68158.0,0.23611487]
[1729361690038,0.05638333,68162.0,68159.0,0.23611487]
[1729361690233,0.05638333,68162.0,68160.0,0.23611487]
[1729361690440,0.05638333,68162.0,68161.0,0.10772094]
[1729361692744,0.08312849,68162.0,68161.0,0.10772094]
[1729361696446,0.08312849,68162.0,68157.0,0.06602]
[1729361696447,0.19242914,68162.0,68157.0,0.06602]
[1729361696651,0.10930065,68161.0,68156.0,0.30956271]
[1729361696950,0.10930065,68160.0,68158.0,0.219496]
[1729361697136,0.10930065,68159.0,68157.0,0.219496]
[1729361697338,0.08312849,68162.0,68157.0,0.06602]
[1729361697339,0.10950065,68158.0,68157.0,0.06602]
[1729361697539,0.10950065,68158.0,68157.0,0.28741642]
[1729361701652,0.18987522,68158.0,68157.0,0.28741642]
[1729361701953,0.27083586,68158.0,68157.0,0.28741642]
[1729361702547,0.10950065,68158.0,68157.0,0.28741642]
[1729361704454,0.0002,68158.0,68157.0,0.52157952]
[1729361706460,0.0002,68158.0,68157.0,0.51992828]
[1729361711446,0.0002,68158.0,68157.0,0.28741642]
[1729361718051,0.0002,68158.0,68157.0,0.36081603]
[1729361718461,0.0002,68158.0,68157.0,0.28741642]
[1729361719661,0.06446704,68158.0,68157.0,0.1712188]
[1729361720353,0.10949951,68158.0,68157.0,0.2372388]
[1729361725555,0.0002,68158.0,68157.0,0.2372388]
[1729361725751,0.10949933,68158.0,68157.0,0.2372388]
[1729361726765,0.02674516,68162.0,68158.0,0.066019]
[1729361726959,0.066014,68163.0,68159.0,0.23416541]
[1729361727160,0.066014,68163.0,68160.0,0.23416541]
[1729361727353,0.066014,68163.0,68161.0,0.23416541]
[1729361727663,0.066014,68163.0,68162.0,0.10682907]
[1729361727851,0.066014,68163.0,68162.0,0.23416056]
[1729361728451,0.066014,68163.0,68162.0,0.10682907]
[1729361728863,0.0676154,68164.0,68162.0,0.10682907]
[1729361729056,0.0676154,68164.0,68163.0,0.19491104]
[1729361730561,0.0676154,68164.0,68163.0,0.19489421]
[1729361731557,0.0676154,68164.0,68163.0,0.10681224]
[1729361731763,0.3608,68166.0,68165.0,0.066012]
[1729361731959,0.426804,68174.0,68165.0,0.23394183]
[1729361731960,0.0428,68173.0,68165.0,0.23394183]
[1729361732156,0.0428,68173.0,68170.0,0.426808]
[1729361732355,0.066001,68177.0,68171.0,0.17281924]
[1729361732562,0.066001,68177.0,68171.0,0.51803465]
[1729361732855,0.02880044,68172.0,68171.0,0.39153845]
[1729361733068,0.00220086,68172.0,68171.0,0.39153845]
[1729361733569,0.3608,68180.0,68171.0,0.39153845]
[1729361733865,0.3608,68180.0,68177.0,0.07328737]
[1729361734063,0.426798,68180.0,68177.0,0.07328737]
[1729361734362,0.45385213,68180.0,68177.0,0.07328737]
[1729361734565,0.066,68178.0,68176.0,0.07328737]
[1729361734866,0.0002,68177.0,68175.0,0.21960907]
[1729361735067,0.0002,68176.0,68175.0,0.21960907]
[1729361735256,0.0002,68176.0,68174.0,0.0002]
[1729361735564,0.0002,68175.0,68174.0,0.0002]
[1729361735962,0.0002,68175.0,68174.0,0.21897597]
[1729361741668,0.0002,68175.0,68169.0,0.05207812]
[1729361741669,0.10948019,68175.0,68169.0,0.05207812]
[1729361741868,0.0002,68170.0,68169.0,0.05207812]
[1729361742166,0.06445568,68170.0,68169.0,0.27109635]
[1729361742763,0.10948019,68170.0,68169.0,0.27109635]
[1729361744663,0.10948189,68170.0,68169.0,0.27109635]
[1729361748170,0.1355383,68170.0,68169.0,0.27109635]
[1729361749778,0.02625641,68170.0,68169.0,0.27109635]
[1729361756673,0.09051281,68170.0,68169.0,0.19028309]
[1729361756879,0.13553782,68170.0,68169.0,0.19028309]
[1729361757379,0.13553782,68170.0,68169.0,0.25629109]
[1729361764777,0.02625641,68170.0,68169.0,0.32957846]
[1729361765397,0.02625641,68170.0,68169.0,0.4377071]
[1729361765590,0.02625641,68170.0,68169.0,0.32957846]
[1729361766189,0.02625641,68170.0,68169.0,0.25629109]
[1729361766379,0.02625641,68170.0,68169.0,0.32957846]
[1729361766988,0.02625641,68170.0,68169.0,0.43771091]
[1729361769588,0.02625641,68170.0,68169.0,0.36442354]
[1729361771703,0.02625641,68170.0,68169.0,0.25629109]
[1729361771889,0.09051029,68170.0,68169.0,0.13885909]
[1729361772091,0.13553353,68170.0,68169.0,0.13885909]
[1729361779699,0.02625641,68170.0,68169.0,0.24771054]
[1729361780004,0.32450237,68176.0,68172.0,0.066005]
[1729361780190,0.32450237,68176.0,68173.0,0.23763164]
[1729361780404,0.32450237,68176.0,68174.0,0.23763164]
[1729361780595,0.32450237,68176.0,68175.0,0.10885145]
[1729361780795,0.32450237,68176.0,68175.0,0.32981859]
[1729361781199,0.32450237,68176.0,68175.0,0.10885145]
[1729361781503,0.32450237,68176.0,68175.0,0.10839852]
[1729361781702,0.32450237,68176.0,68175.0,0.17440152]
[1729361782005,0.35103538,68176.0,68175.0,0.39538275]
[1729361782200,0.35103538,68176.0,68175.0,0.48342662]
[1729361783905,0.35103538,68176.0,68175.0,0.39538275]
[1729361784106,0.02653301,68176.0,68175.0,0.39538275]
[1729361784304,0.0002,68177.0,68176.0,0.066002]
[1729361784609,0.0002,68177.0,68176.0,0.3958213]
[1729361786193,0.02651554,68177.0,68176.0,0.3958213]
[1729361786393,0.02651554,68177.0,68176.0,0.39567969]
[1729361786808,0.02651554,68177.0,68176.0,0.28742278]
[1729361786809,0.05484853,68177.0,68176.0,0.28742278]
[1729361787105,0.13578911,68177.0,68176.0,0.28742278]
[1729361788509,0.13578911,68177.0,68176.0,0.20492219]
[1729361789509,0.13578911,68177.0,68176.0,0.27092419]
[1729361790706,0.21617604,68177.0,68176.0,0.27092419]
[1729361790908,0.13578911,68177.0,68176.0,0.27092419]
[1729361791111,0.13578442,68177.0,68176.0,0.27092419]
[1729361793602,0.10946888,68177.0,68176.0,0.27092419]
[1729361794909,0.0002,68177.0,68176.0,0.27092419]
[1729361795512,0.426783,68196.0,68180.0,0.065998]
[1729361795818,0.4391,68194.0,68192.0,0.04396588]
[1729361796116,0.0429,68193.0,68192.0,0.04396588]
[1729361796311,0.0429,68193.0,68191.0,0.065986]
[1729361796512,0.0429,68193.0,68192.0,0.065986]
[1729361810047,0.0429,68193.0,68188.0,0.3608]
[1729361810048,0.15215048,68193.0,68188.0,0.29018629]
[1729361810237,0.10924961,68192.0,68188.0,0.29018629]
[1729361810436,0.09549648,68193.0,68188.0,0.29018629]
[1729361810437,0.09549648,68193.0,68191.0,0.065987]
[1729361810743,0.10924999,68192.0,68191.0,0.065987]
[1729361816838,0.0429,68193.0,68191.0,0.065987]
[1729361818451,0.0429,68193.0,68191.0,0.04396588]
[1729361818748,0.0429,68193.0,68192.0,0.065986]
[1729361819351,0.0429,68193.0,68192.0,0.10995188]
[1729361819552,0.0429,68193.0,68192.0,0.065986]
[1729361820346,0.0429,68193.0,68192.0,0.10995188]
[1729361820751,0.0429,68193.0,68192.0,0.065986]
[1729361821350,0.0429,68193.0,68192.0,0.10995188]
[1729361822045,0.0429,68193.0,68192.0,0.065986]
[1729361822244,0.0429,68193.0,68192.0,0.10995188]
[1729361822951,0.46692211,68194.0,68193.0,0.065985]
[1729361823250,0.46616211,68194.0,68193.0,0.10994443]
[1729361823952,0.46616211,68194.0,68193.0,0.1099533]
[1729361824456,0.46616211,68194.0,68193.0,0.065985]
[1729361825357,0.46616211,68194.0,68193.0,0.12460617]
[1729361828455,0.46616211,68194.0,68193.0,0.065985]
[1729361828659,0.46616211,68194.0,68193.0,0.12465319]
[1729361831853,0.57540969,68194.0,68193.0,0.00981788]
[1729361832053,0.62800477,68194.0,68192.0,0.065986]
[1729361832249,0.16204266,68193.0,68192.0,0.065986]
[1729361837065,0.16204266,68193.0,68192.0,0.04767577]
[1729361837763,0.16204488,68193.0,68192.0,0.04767577]
[1729361840065,0.0002,68193.0,68192.0,0.04767577]
[1729361847073,0.10944836,68193.0,68187.0,0.0468]
[1729361847267,0.10924836,68192.0,68191.0,0.065987]
[1729361847472,0.10924887,68192.0,68191.0,0.065987]
[1729361847773,0.10924887,68192.0,68191.0,0.28633017]
[1729361848763,0.10924887,68192.0,68191.0,0.22034317]
[1729361848978,0.24454887,68192.0,68191.0,0.22034317]
[1729361850582,0.24454887,68192.0,68187.0,0.0004]
[1729361850763,0.10924887,68191.0,68187.0,0.0004]
[1729361850966,0.0002,68188.0,68187.0,0.0004]
[1729361851167,0.06443726,68188.0,68187.0,0.0004]
[1729361851377,0.10944887,68188.0,68187.0,0.0004]
[1729361852074,0.10945552,68188.0,68187.0,0.0004]
[1729361854981,0.0002,68188.0,68187.0,0.0004]
[1729361855774,0.0002,68188.0,68187.0,0.066391]
[1729361856083,0.0002,68188.0,68187.0,0.12505221]
[1729361861977,0.06444117,68188.0,68185.0,0.30998222]
[1729361862294,0.06444117,68188.0,68184.0,0.0002]
[1729361862295,0.0002,68186.0,68184.0,0.0002]
[1729361862483,0.10945551,68185.0,68184.0,0.066194]
[1729361862881,0.10945551,68185.0,68184.0,0.28540713]
[1729361867309,0.13550545,68185.0,68184.0,0.28540713]
[1729361870001,0.02624994,68185.0,68184.0,0.46868062]
[1729361871400,0.02624994,68185.0,68184.0,0.46868689]
[1729361872197,0.02624994,68185.0,68184.0,0.39541043]
[1729361872508,0.02624994,68185.0,68184.0,0.46873672]
[1729361872708,0.02624994,68185.0,68184.0,0.4688061]
[1729361873099,0.02624994,68185.0,68184.0,0.39547981]
[1729361873301,0.02624994,68185.0,68184.0,0.46880961]
[1729361873607,0.02624994,68185.0,68184.0,0.46881003]
[1729361874701,0.02624994,68185.0,68184.0,0.46882282]
[1729361875601,0.02624994,68185.0,68184.0,0.3954926]
[1729361876002,0.02624994,68185.0,68184.0,0.46883258]
[1729361876302,0.02624994,68185.0,68184.0,0.3954926]
[1729361877011,0.13550466,68185.0,68184.0,0.28540713]
[1729361877212,0.13550466,68185.0,68184.0,0.18337731]
[1729361878518,0.13550466,68185.0,68184.0,0.24937131]
[1729361880714,0.13550462,68185.0,68184.0,0.24937131]
[1729361884221,0.32410992,68190.0,68188.0,0.06599]
[1729361884408,0.32410992,68190.0,68189.0,0.24255863]
[1729361885514,0.32410992,68190.0,68189.0,0.30854763]
[1729361886517,0.34987371,68190.0,68189.0,0.30854763]
[1729361889319,0.34987371,68190.0,68189.0,0.30768242]
[1729361892129,0.34987371,68190.0,68189.0,0.12468161]
[1729361892715,0.34987371,68190.0,68189.0,0.065989]
[1729361893615,0.34987371,68190.0,68189.0,0.12468132]
[1729361894124,0.34987371,68190.0,68189.0,0.065989]
[1729361896425,0.34987371,68190.0,68189.0,0.12468134]
[1729361896738,0.34987371,68190.0,68189.0,0.065989]
[1729361897127,0.34987371,68190.0,68189.0,0.12468165]
[1729361897328,0.34987371,68190.0,68189.0,0.065989]
[1729361899131,0.45912823,68190.0,68189.0,0.065989]
[1729361903839,0.43080016,68190.0,68189.0,0.065989]
[1729361904027,0.4591282,68190.0,68189.0,0.065989]
[1729361907119,0.38578624,68190.0,68189.0,0.30743201]
[1729361907436,0.34987371,68190.0,68189.0,0.30743201]
[1729361908724,0.34987371,68190.0,68189.0,0.30742854]
[1729361912737,0.34987371,68190.0,68189.0,0.52777331]
[1729361913028,0.02576379,68190.0,68189.0,0.52777331]
[1729361913241,0.0002,68193.0,68189.0,0.56449919]
[1729361913429,0.0002,68193.0,68192.0,0.065986]
[1729361913732,0.0002,68193.0,68192.0,0.30701453]
[1729361918329,0.0002,68193.0,68192.0,0.065986]
[1729361918656,0.0002,68193.0,68192.0,0.30708225]
[1729361922342,0.10945078,68193.0,68185.0,0.02685683]
[1729361922544,0.0002,68186.0,68184.0,0.0913]
[1729361922838,0.0002,68186.0,68185.0,0.2872058]
[1729361923033,0.10944925,68186.0,68185.0,0.2872058]
[1729361929343,0.16132704,68191.0,68185.0,0.61575912]
[1729361929538,0.16132704,68191.0,68190.0,0.065988]
[1729361929843,0.16132704,68191.0,68190.0,0.5277578]
[1729361930033,0.22731404,68191.0,68190.0,0.5277578]
[1729361930236,0.16132704,68191.0,68190.0,0.5277578]
[1729361931550,0.16132704,68191.0,68190.0,0.52763931]
[1729361931838,0.43986,68194.0,68193.0,0.065985]
[1729361931839,0.11824074,68194.0,68193.0,0.065985]
[1729361932030,0.11824074,68194.0,68193.0,0.46031262]
[1729361932031,0.11748074,68194.0,68193.0,0.46031262]
[1729361932236,0.11748074,68194.0,68193.0,1.71900965]
[1729361932436,0.11748074,68194.0,68193.0,1.83639974]
[1729361932637,0.11748074,68194.0,68193.0,1.89373491]
[1729361932843,0.04411982,68194.0,68193.0,2.02586951]
[1729361933347,0.04411982,68194.0,68193.0,1.45381491]
[1729361933541,0.04411982,68194.0,68193.0,1.27908965]
[1729361933750,0.04411982,68194.0,68193.0,1.45283651]
[1729361934336,0.04411982,68194.0,68193.0,1.27908965]
[1729361934943,0.04411982,68194.0,68193.0,1.45268552]
[1729361935340,0.04411982,68194.0,68193.0,1.71900965]
[1729361935535,0.04411982,68194.0,68193.0,1.8924561]
[1729361935849,0.04411982,68194.0,68193.0,1.71900965]
[1729361936349,0.04411982,68194.0,68193.0,1.27908965]
[1729361937346,0.04411982,68194.0,68193.0,0.88476203]
[1729361938358,0.10834098,68194.0,68193.0,0.88476203]
[1729361939247,0.0724393,68194.0,68193.0,0.88476203]
[1729361939550,0.10834095,68194.0,68193.0,0.88476203]
[1729361939849,0.06422113,68194.0,68193.0,0.88476203]
[1729361940348,0.02831948,68194.0,68193.0,0.88476203]
[1729361940549,0.06422035,68194.0,68193.0,0.88476203]
[1729361940846,0.02628578,68203.0,68202.0,0.065977]
[1729361941041,0.02628578,68203.0,68200.0,0.065979]
[1729361941042,0.10922272,68203.0,68200.0,0.065979]
[1729361941243,0.0484,68207.0,68202.0,0.21951873]
[1729361941438,0.1092224,68206.0,68205.0,0.065974]
[1729361941852,0.1092224,68206.0,68205.0,0.28549273]
[1729361944353,0.0751638,68207.0,68205.0,0.32942678]
[1729361944553,0.0751638,68207.0,68206.0,0.17588105]
[1729361944952,0.0751638,68207.0,68206.0,0.39440486]
[1729361946251,0.0751638,68207.0,68206.0,0.39439741]
[1729361951059,0.0751638,68207.0,68206.0,0.39436594]
[1729361952050,0.0751638,68207.0,68206.0,0.38563894]
[1729361952249,0.0751638,68207.0,68206.0,0.45871079]
[1729361952452,0.10348383,68207.0,68206.0,0.27576981]
[1729361952760,0.18438741,68207.0,68206.0,0.27576981]
[1729361957150,0.18438741,68207.0,68206.0,0.13983218]
[1729361959355,0.0751638,68207.0,68206.0,0.18365158]
[1729361960064,0.0751638,68207.0,68206.0,0.0438194]
[1729361960363,0.0751638,68207.0,68204.0,0.065974]
[1729361960364,0.0751638,68207.0,68204.0,0.12439986]
[1729361960563,0.0906,68206.0,68204.0,0.12439986]
[1729361961156,0.0906,68206.0,68205.0,0.05842586]
[1729361961460,0.0906,68206.0,68204.0,0.065974]
[1729361967466,0.10922416,68205.0,68204.0,0.065974]
[1729361974371,0.0906,68206.0,68204.0,0.065974]
[1729361975069,0.065974,68205.0,68204.0,0.065974]
[1729361976173,0.065974,68205.0,68204.0,0.24970359]
[1729361976373,0.065974,68205.0,68204.0,0.065974]
[1729361977065,0.065974,68205.0,68204.0,0.13923154]
[1729361978372,0.065974,68205.0,68204.0,0.24972758]
[1729361980572,0.065974,68205.0,68204.0,0.24972708]
[1729361980774,0.065974,68205.0,68204.0,0.24972693]
[1729361989462,0.13019679,68205.0,68204.0,0.065974]
[1729361989663,0.17519826,68205.0,68204.0,0.065974]
[1729361990472,0.065977,68202.0,68201.0,0.3608]
[1729361990667,0.17520127,68202.0,68201.0,0.3608]
[1729361991475,0.17520127,68202.0,68201.0,0.426778]
[1729361997086,0.065977,68202.0,68201.0,0.426778]
[1729361997983,0.02929748,68202.0,68201.0,0.66850258]
[1729362003987,0.02929748,68202.0,68201.0,0.66799095]
[1729362009289,0.0906,68206.0,68205.0,0.065974]
[1729362009290,0.111173,68206.0,68205.0,0.065974]
[1729362009488,0.0452,68206.0,68205.0,0.26394944]
[1729362009793,0.0452,68206.0,68205.0,0.48507716]
[1729362009999,0.0452,68206.0,68205.0,0.39715044]
[1729362010295,0.0452,68206.0,68205.0,0.48507246]
[1729362010597,0.0452,68206.0,68205.0,0.39715044]
[1729362010901,0.0269638,68207.0,68206.0,0.065973]
[1729362011093,0.0269638,68207.0,68206.0,0.26393833]
[1729362011293,0.0269638,68207.0,68206.0,0.48250511]
[1729362012296,0.0269638,68207.0,68206.0,0.39458411]
[1729362012797,0.10028474,68207.0,68206.0,0.28453978]
[1729362013095,0.0269638,68207.0,68206.0,0.28453978]
[1729362013298,0.13618698,68207.0,68206.0,0.28453978]
[1729362017507,0.0269638,68207.0,68206.0,0.28453978]
[1729362018499,0.0552838,68207.0,68206.0,0.28453978]
[1729362018703,0.0269638,68207.0,68206.0,0.28453978]
[1729362018906,0.13618695,68207.0,68206.0,0.28453978]
[1729362019603,0.0269638,68207.0,68206.0,0.52536015]
[1729362019792,0.06597,68209.0,68206.0,0.52536015]
[1729362019995,0.06597,68209.0,68207.0,0.24082037]
[1729362020205,0.06597,68209.0,68208.0,0.24082037]
[1729362020509,0.06597,68209.0,68208.0,0.46164968]
[1729362023708,0.06597,68209.0,68208.0,0.46121846]
[1729362024799,0.0929232,68209.0,68208.0,0.46121846]
[1729362026697,0.0929232,68209.0,68208.0,0.10345531]
[1729362026698,0.15714534,68209.0,68208.0,0.10345531]
[1729362026897,0.20214635,68209.0,68208.0,0.10345531]
[1729362028508,0.20214634,68209.0,68208.0,0.10345531]
[1729362034804,0.0929232,68209.0,68208.0,0.34565139]
[1729362040617,0.0929232,68209.0,68208.0,0.34576956]
[1729362041723,0.20214634,68209.0,68208.0,0.10345531]
[1729362043322,0.2021464,68209.0,68208.0,0.10345531]
[1729362047320,0.0929232,68209.0,68208.0,0.10345531]
[1729362050420,0.05624383,68209.0,68208.0,0.34565449]
[1729362054215,0.05624383,68209.0,68208.0,0.34509261]
[1729362057427,0.05624383,68209.0,68208.0,0.10345531]
[1729362057428,0.12046597,68209.0,68208.0,0.10345531]
[1729362057626,0.16546697,68209.0,68208.0,0.10345531]
[1729362062429,0.16546612,68209.0,68208.0,0.10345531]
[1729362064628,0.16546612,68209.0,68208.0,0.34504711]
[1729362064629,0.05624383,68209.0,68208.0,0.34504711]
[1729362065330,0.05624383,68209.0,68208.0,0.10345531]
[1729362065720,0.05624383,68209.0,68208.0,0.34502792]
[1729362072026,0.05624383,68209.0,68208.0,0.30158364]
[1729362072519,0.05624383,68209.0,68208.0,0.21367737]
[1729362076029,0.05624383,68209.0,68208.0,0.27964837]
[1729362076030,0.0269532,68209.0,68208.0,0.27964837]
[1729362076232,0.0004,68210.0,68208.0,0.27964837]
[1729362076430,0.0004,68210.0,68209.0,0.11022206]
[1729362077126,0.02673772,68210.0,68209.0,0.11022206]
[1729362077334,0.09270672,68210.0,68209.0,0.11022206]
[1729362077530,0.09270672,68210.0,68209.0,0.11020365]
[1729362079431,0.09270672,68210.0,68205.0,0.066173]
[1729362079634,0.10922193,68209.0,68205.0,0.066173]
[1729362079832,0.10922193,68208.0,68207.0,0.22099205]
[1729362080030,0.06422143,68208.0,68206.0,0.22099205]
[1729362080239,0.10922193,68207.0,68205.0,0.066173]
[1729362080539,0.10922193,68206.0,68205.0,0.066173]
[1729362080942,0.10922193,68206.0,68205.0,0.28556865]
[1729362082340,0.10922017,68206.0,68205.0,0.28556865]
[1729362087435,0.09230672,68210.0,68205.0,0.78204163]
[1729362087640,0.09230672,68210.0,68206.0,0.24146152]
[1729362087951,0.09230672,68210.0,68205.0,0.3883398]
[1729362087952,0.09230672,68210.0,68207.0,0.46072059]
[1729362088145,0.09230672,68210.0,68208.0,0.24146152]
[1729362088345,0.09230672,68210.0,68209.0,0.24146152]
[1729362094549,0.09230672,68210.0,68209.0,0.11016595]
[1729362096049,0.09230672,68210.0,68206.0,0.065973]
[1729362096350,0.09230672,68210.0,68208.0,0.21908063]
[1729362096755,0.09230672,68210.0,68206.0,0.065973]
[1729362097064,0.09230672,68210.0,68207.0,0.41810958]
[1729362097358,0.09230672,68210.0,68208.0,0.11024071]
[1729362097563,0.09230672,68210.0,68209.0,0.11024071]
[1729362100750,0.09230672,68210.0,68209.0,0.11020778]
[1729362102560,0.20152966,68210.0,68206.0,0.065973]
[1729362102771,0.10922294,68209.0,68206.0,0.065973]
[1729362103060,0.10922294,68208.0,68207.0,0.22127856]
[1729362109578,0.05562742,68210.0,68207.0,0.46283605]
[1729362109881,0.05562742,68210.0,68208.0,0.24155749]
[1729362110070,0.065969,68210.0,68209.0,0.24155749]
[1729362110578,0.065969,68210.0,68209.0,0.11020151]
[1729362110878,0.06597,68209.0,68208.0,0.07327277]
[1729362111081,0.80064,68209.0,68201.0,0.0002]
[1729362111277,0.426777,68202.0,68201.0,0.0002]
[1729362117686,0.45510174,68202.0,68201.0,0.0002]
[1729362119383,0.4811061,68202.0,68201.0,0.0002]
[1729362120889,0.4811061,68202.0,68193.0,0.065985]
[1729362120890,1.45500972,68202.0,68193.0,0.065985]
[1729362121086,0.3608,68194.0,68193.0,0.065985]
[1729362121488,0.0886,68198.0,68197.0,0.065982]
[1729362121789,0.0002,68200.0,68199.0,0.06598]
[1729362124687,0.2916249,68202.0,68199.0,0.19429627]
[1729362124884,0.2916249,68202.0,68200.0,0.12831627]
[1729362125181,0.2916249,68202.0,68199.0,0.06598]
[1729362125182,0.2916249,68202.0,68201.0,0.12832469]
[1729362125796,0.2916249,68202.0,68201.0,0.2352799]
[1729362129988,0.2916249,68202.0,68201.0,0.23444038]
[1729362132595,0.2916249,68202.0,68199.0,0.16841835]
[1729362132596,0.40086403,68202.0,68199.0,0.06598]
[1729362132792,0.10923913,68201.0,68199.0,0.06598]
[1729362132994,0.10923913,68200.0,68199.0,0.06598]
[1729362134893,0.45276909,68202.0,68199.0,0.06598]
[1729362135289,0.2916249,68202.0,68199.0,0.06598]
[1729362137200,0.2916249,68202.0,68197.0,0.0002]
[1729362137499,0.27059642,68201.0,68200.0,0.065978]
[1729362137901,0.16135778,68201.0,68200.0,0.065978]
[1729362138400,0.0002,68201.0,68200.0,0.065978]
[1729362140809,0.0002,68201.0,68200.0,0.26110159]
[1729362141397,0.0002,68201.0,68200.0,0.17316512]
[1729362142491,0.0002,68201.0,68200.0,0.30087036]
[1729362142696,0.0002,68201.0,68200.0,0.17316512]
[1729362146005,0.0002,68201.0,68200.0,0.39318232]
[1729362146298,0.0002,68201.0,68200.0,0.520887]
[1729362146499,0.0002,68201.0,68200.0,0.39318232]
[1729362146996,0.0002,68201.0,68200.0,0.52073818]
[1729362147200,0.10943101,68201.0,68200.0,0.28600237]